bitfinex/quotes_BTCUSD_20251104
["timestamp","ask_amount","ask_price","bid_price","bid_amount"]
[1762280803943,0.01419626,100740.0,100730.0,0.24140768]
[1762280804144,0.01419626,100740.0,100730.0,0.28799616]
[1762280804384,0.01419626,100740.0,100730.0,0.48654674]
[1762280804596,0.55272713,100740.0,100730.0,0.01088163]
[1762280804818,0.35419626,100740.0,100730.0,0.01088163]
[1762280805027,0.55272713,100740.0,100730.0,0.01088163]
[1762280805249,0.67322613,100740.0,100730.0,0.01088163]
[1762280805458,3.76173675,100740.0,100730.0,0.01088163]
[1762280805667,3.76960514,100740.0,100730.0,0.01088163]
[1762280805880,0.76960514,100740.0,100730.0,0.01088163]
[1762280806090,0.19860973,100700.0,100690.0,0.02534]
[1762280806523,0.26496001,100710.0,100690.0,0.02534]
[1762280806740,0.23479001,100710.0,100690.0,0.20214873]
[1762280806964,0.62903249,100700.0,100670.0,0.01088]
[1762280807171,0.62903249,100700.0,100670.0,0.09382]
[1762280807172,0.19863767,100690.0,100670.0,0.09382]
[1762280807377,0.19863767,100690.0,100680.0,0.09776605]
[1762280807584,0.19864918,100680.0,100670.0,0.01088]
[1762280807796,0.37618228,100690.0,100670.0,0.32420828]
[1762280808024,0.34,100690.0,100680.0,0.35711523]
[1762280808235,0.34048833,100700.0,100690.0,0.19862945]
[1762280808442,0.34048833,100700.0,100690.0,0.30690945]
[1762280808643,0.00048833,100700.0,100690.0,0.36760945]
[1762280808864,0.00048833,100700.0,100690.0,0.43401192]
[1762280810339,0.00048833,100700.0,100690.0,0.43601192]
[1762280810741,0.00048833,100700.0,100690.0,0.43606192]
[1762280811146,0.00048833,100700.0,100690.0,0.47970192]
[1762280811558,0.00048833,100700.0,100690.0,0.48075192]
[1762280811969,0.00025275,100710.0,100700.0,0.39860973]
[1762280812171,0.00025275,100710.0,100700.0,1.60478591]
[1762280812419,0.01273596,100750.0,100740.0,0.19853087]
[1762280812633,0.0004,100760.0,100750.0,0.37399116]
[1762280813028,0.19889146,100760.0,100750.0,0.17548]
[1762280813238,0.19889146,100760.0,100750.0,0.09769]
[1762280813403,0.53889146,100760.0,100750.0,0.04157]
[1762280813605,0.53889448,100760.0,100750.0,4.811e-05]
[1762280813800,0.3404,100760.0,100750.0,0.13395811]
[1762280814002,0.0004,100760.0,100750.0,0.33246927]
[1762280814445,0.0004,100760.0,100750.0,0.13395811]
[1762280814446,0.01350739,100760.0,100750.0,0.13395811]
[1762280814647,0.0004,100760.0,100750.0,0.1811405]
[1762280814844,0.0004,100760.0,100750.0,0.37965166]
[1762280815113,0.0004,100760.0,100750.0,0.1811905]
[1762280815324,0.55191735,100760.0,100750.0,0.1034005]
[1762280815526,0.58809963,100760.0,100750.0,9.811e-05]
[1762280815667,0.77273963,100760.0,100750.0,9.811e-05]
[1762280815888,0.77273963,100760.0,100750.0,0.00014811]
[1762280817919,0.63089963,100760.0,100750.0,0.00014811]
[1762280818139,0.35342589,100760.0,100750.0,0.00014811]
[1762280818354,0.04960817,100760.0,100750.0,0.13405811]
[1762280818562,0.21318028,100760.0,100750.0,0.04318358]
[1762280818775,0.24936256,100760.0,100750.0,0.00014811]
[1762280819193,0.58936256,100760.0,100750.0,0.00014811]
[1762280819468,0.35468882,100760.0,100750.0,0.13405811]
[1762280819682,0.35468882,100760.0,100750.0,0.33256927]
[1762280819902,0.55318028,100760.0,100750.0,0.13405811]
[1762280820107,0.19849146,100760.0,100750.0,0.17709356]
[1762280820323,0.19849146,100760.0,100750.0,0.04318356]
[1762280820534,0.41931374,100760.0,100750.0,0.00014811]
[1762280820966,0.33445374,100760.0,100750.0,0.00014811]
[1762280821179,0.27747374,100760.0,100750.0,0.00014811]
[1762280821607,0.19898581,100780.0,100760.0,0.19848929]
[1762280821842,0.01301436,100770.0,100760.0,0.4271512]
[1762280822067,0.19847176,100770.0,100760.0,0.15087191]
[1762280822271,0.19847176,100770.0,100750.0,0.00014811]
[1762280822272,0.19849146,100760.0,100750.0,0.00014811]
[1762280822477,0.19847176,100770.0,100750.0,0.27644927]
[1762280822793,0.57467374,100760.0,100750.0,0.00014811]
[1762280823002,0.75931374,100760.0,100750.0,0.00014811]
[1762280823473,0.67445374,100760.0,100750.0,0.00014811]
[1762280823689,0.75931374,100760.0,100750.0,0.00014811]
[1762280823906,0.81816711,100760.0,100750.0,0.00014811]
[1762280824115,3.81816711,100760.0,100750.0,0.00014811]
[1762280824958,3.81816711,100760.0,100750.0,1e-08]
[1762280825163,3.98282261,100760.0,100750.0,1e-08]
[1762280825370,4.03867617,100760.0,100750.0,1e-08]
[1762280825796,3.96497127,100760.0,100750.0,1e-08]
[1762280826000,3.96497127,100760.0,100700.0,0.0001]
[1762280826001,0.57477229,100710.0,100700.0,0.0001]
[1762280826213,0.57491866,100710.0,100700.0,0.0001]
[1762280826422,0.34014637,100710.0,100700.0,0.33261973]
[1762280826627,0.00014637,100710.0,100700.0,0.48605461]
[1762280827716,0.00014637,100710.0,100700.0,0.4879878]
[1762280827888,0.00014637,100710.0,100700.0,0.55689573]
[1762280828108,0.00014637,100710.0,100700.0,0.55496254]
[1762280828872,0.00014637,100710.0,100700.0,0.55596254]
[1762280829067,0.00014637,100710.0,100700.0,0.55496254]
[1762280829472,0.00014637,100710.0,100700.0,1.67257071]
[1762280829700,0.00014637,100710.0,100700.0,1.69857071]
[1762280829917,0.00014637,100710.0,100700.0,1.6845707]
[1762280830568,0.00014637,100710.0,100700.0,1.09696254]
[1762280831009,0.00014637,100710.0,100700.0,1.67457071]
[1762280831420,0.00014637,100710.0,100700.0,1.47457071]
[1762280831546,0.00014637,100710.0,100700.0,1.52021071]
[1762280831944,0.00014637,100710.0,100700.0,1.5302107]
[1762280832373,0.00014637,100710.0,100700.0,1.52021071]
[1762280833259,0.20841963,100760.0,100700.0,1.52021071]
[1762280833260,0.22176421,100770.0,100740.0,0.19853087]
[1762280833430,0.21193584,100770.0,100760.0,0.04157]
[1762280833635,0.00039849,100770.0,100760.0,0.29618146]
[1762280833968,0.00039849,100770.0,100760.0,0.37397146]
[1762280834139,0.00039849,100770.0,100760.0,0.17548]
[1762280834286,0.00039849,100770.0,100760.0,0.37397146]
[1762280834496,0.00039849,100770.0,100760.0,0.2139237]
[1762280834737,0.00039849,100770.0,100760.0,0.41241516]
[1762280834932,0.34039849,100770.0,100760.0,0.41241516]
[1762280835137,0.53887025,100770.0,100760.0,0.2169237]
[1762280835432,0.53887025,100770.0,100760.0,0.04457]
[1762280835634,0.57505253,100770.0,100760.0,0.003]
[1762280836198,3.71689253,100770.0,100760.0,0.003]
[1762280836399,0.23468911,100760.0,100740.0,0.04157]
[1762280836592,0.53887178,100770.0,100750.0,0.17555605]
[1762280836796,0.53887178,100770.0,100760.0,0.13391]
[1762280836797,0.34039849,100770.0,100760.0,0.13391]
[1762280836969,0.34039849,100770.0,100760.0,0.13491]
[1762280837151,0.34039849,100770.0,100760.0,0.33340146]
[1762280837970,0.00039849,100770.0,100760.0,0.40130939]
[1762280838193,0.00039849,100770.0,100760.0,1.07117063]
[1762280838838,0.00039849,100770.0,100760.0,1.61117063]
[1762280839040,0.00039849,100770.0,100760.0,1.63517063]
[1762280839177,0.00039849,100770.0,100760.0,1.61117063]
[1762280839582,0.00039849,100770.0,100760.0,1.64735291]
[1762280839784,1e-08,100770.0,100760.0,2.45896107]
[1762280839994,1e-08,100770.0,100760.0,1.28974472]
[1762280840195,1e-08,100770.0,100760.0,1.66935289]
[1762280840400,1e-08,100770.0,100760.0,1.08174473]
[1762280840598,1e-08,100770.0,100760.0,1.03556246]
[1762280840828,1e-08,100770.0,100760.0,0.54116246]
[1762280841231,1e-08,100770.0,100760.0,0.53916246]
[1762280841512,1e-08,100770.0,100760.0,0.49756246]
[1762280841713,1e-08,100770.0,100760.0,0.42865453]
[1762280841855,1e-08,100770.0,100760.0,0.22616307]
[1762280842055,1e-08,100770.0,100760.0,0.37800146]
[1762280842331,1e-08,100770.0,100760.0,0.33240146]
[1762280842532,1e-08,100770.0,100760.0,0.53240146]
[1762280843221,1e-08,100770.0,100760.0,0.53340146]
[1762280844706,1e-08,100770.0,100760.0,1.51420731]
[1762280844879,1e-08,100770.0,100760.0,1.97278337]
[1762280845060,1e-08,100770.0,100760.0,2.02769129]
[1762280845635,1e-08,100770.0,100760.0,1.23688545]
[1762280845874,1e-08,100770.0,100760.0,1.24688544]
[1762280846095,1e-08,100770.0,100760.0,1.23588545]
[1762280846303,1e-08,100770.0,100760.0,1.28148545]
[1762280846513,1e-08,100770.0,100760.0,1.28548545]
[1762280847408,1e-08,100770.0,100760.0,2.13647357]
[1762280847623,1e-08,100780.0,100770.0,0.71000403]
[1762280847843,1e-08,100780.0,100770.0,1.6288133]
[1762280848276,0.00025247,100780.0,100770.0,1.6288133]
[1762280848534,1e-08,100780.0,100770.0,1.6048133]
[1762280848964,1e-08,100780.0,100770.0,1.63881329]
[1762280849182,1e-08,100780.0,100770.0,1.64081329]
[1762280849604,1e-08,100780.0,100770.0,0.86000744]
[1762280849867,1e-08,100780.0,100770.0,1.64081329]
[1762280850306,1e-08,100800.0,100790.0,0.86863465]
[1762280850508,1e-08,100800.0,100790.0,1.96629053]
[1762280850720,1e-08,100800.0,100790.0,2.01401053]
[1762280850945,1e-08,100800.0,100790.0,1.23320468]
[1762280851144,1e-08,100800.0,100790.0,1.25720468]
[1762280851351,1e-08,100800.0,100790.0,2.01401053]
[1762280851565,1e-08,100800.0,100790.0,2.01127017]
[1762280851787,1e-08,100800.0,100790.0,1.23446432]
[1762280852005,1e-08,100800.0,100790.0,1.18102242]
[1762280852243,1e-08,100800.0,100790.0,0.59542242]
[1762280852447,1e-08,100800.0,100790.0,0.64102242]
[1762280852878,1e-08,100800.0,100790.0,0.64107242]
[1762280853096,1e-08,100800.0,100790.0,0.63835531]
[1762280853565,1e-08,100800.0,100790.0,0.63840531]
[1762280853747,1e-08,100800.0,100790.0,0.63574349]
[1762280853959,1e-08,100800.0,100790.0,0.63179349]
[1762280854165,1e-08,100800.0,100790.0,1.94986497]
[1762280854383,1e-08,100800.0,100790.0,1.9811246]
[1762280854593,1e-08,100800.0,100790.0,1.96612047]
[1762280854845,1e-08,100800.0,100790.0,1.96578784]
[1762280855027,1e-08,100800.0,100790.0,1.174982]
[1762280855243,1e-08,100800.0,100790.0,1.95052822]
[1762280855462,1e-08,100800.0,100790.0,2.02524647]
[1762280855897,1e-08,100800.0,100790.0,2.02491055]
[1762280856134,0.0003804,100800.0,100790.0,1.2201047]
[1762280856337,0.0003804,100800.0,100790.0,1.98820599]
[1762280856551,0.0003804,100800.0,100790.0,1.99820598]
[1762280856761,0.0003804,100800.0,100790.0,2.01953829]
[1762280856975,0.0003804,100800.0,100790.0,1.99288185]
[1762280857197,1e-08,100800.0,100790.0,2.01688185]
[1762280857477,1e-08,100800.0,100790.0,1.98588186]
[1762280857695,1e-08,100800.0,100790.0,1.20507601]
[1762280857903,1e-08,100800.0,100790.0,1.99588185]
[1762280858118,1e-08,100800.0,100790.0,1.16619918]
[1762280858563,1e-08,100800.0,100790.0,1.11333955]
[1762280858803,1e-08,100800.0,100790.0,0.57333955]
[1762280859011,1e-08,100800.0,100790.0,0.61893955]
[1762280859229,1e-08,100800.0,100790.0,0.57333955]
[1762280859449,1e-08,100800.0,100790.0,0.28033111]
[1762280859664,1e-08,100800.0,100790.0,0.47876349]
[1762280859912,1e-08,100800.0,100790.0,0.28033111]
[1762280860099,1e-08,100800.0,100790.0,0.27733111]
[1762280860320,0.00374037,100800.0,100790.0,0.19279605]
[1762280860544,0.20215306,100800.0,100790.0,0.18779605]
[1762280860978,0.54215306,100800.0,100790.0,0.00015]
[1762280861245,0.54115306,100800.0,100790.0,0.00015]
[1762280861449,0.34274037,100800.0,100790.0,0.09503]
[1762280861656,0.54115306,100800.0,100790.0,0.22214421]
[1762280861864,0.34274037,100800.0,100790.0,0.42057659]
[1762280862061,1e-08,100800.0,100790.0,0.42057659]
[1762280862673,0.1984127,100800.0,100790.0,0.00015]
[1762280862895,3.83873061,100800.0,100790.0,0.00015]
[1762280863297,3.84073061,100800.0,100790.0,0.00015]
[1762280863736,0.84073061,100800.0,100790.0,0.00015]
[1762280863920,0.93530667,100800.0,100790.0,0.00015]
[1762280864846,3.93530667,100800.0,100790.0,1e-08]
[1762280866173,3.93330667,100800.0,100790.0,1e-08]
[1762280866376,4.04332578,100800.0,100790.0,1e-08]
[1762280866575,3.5973747,100780.0,100770.0,0.0001]
[1762280866778,3.78229998,100780.0,100770.0,0.0001]
[1762280866975,3.86979998,100780.0,100770.0,0.0001]
[1762280867384,3.86979998,100780.0,100770.0,1e-08]
[1762280867812,0.00274036,100730.0,100710.0,0.00218547]
[1762280868021,0.00274036,100730.0,100710.0,0.00233146]
[1762280868022,0.54130778,100730.0,100710.0,0.00233146]
[1762280868223,0.19857029,100720.0,100710.0,0.00233146]
[1762280868427,0.53686357,100730.0,100710.0,0.24836147]
[1762280868624,0.53686357,100730.0,100710.0,0.04977146]
[1762280868625,0.19857029,100720.0,100710.0,0.04977146]
[1762280868846,0.19857029,100720.0,100710.0,0.00233146]
[1762280869052,0.34,100720.0,100710.0,0.20092147]
[1762280869251,0.1985332,100740.0,100710.0,0.29078147]
[1762280869470,0.34,100730.0,100720.0,0.14269605]
[1762280869647,0.34,100730.0,100720.0,0.42075809]
[1762280870052,0.35273083,100740.0,100730.0,0.19855058]
[1762280870252,0.35273083,100740.0,100730.0,0.24348058]
[1762280870464,0.53853087,100740.0,100730.0,0.04493]
[1762280870682,0.53853105,100740.0,100720.0,0.37582153]
[1762280870827,0.53853105,100740.0,100720.0,0.37682153]
[1762280871294,0.19855058,100730.0,100720.0,0.09876605]
[1762280871899,0.23972058,100730.0,100720.0,0.001]
[1762280872085,0.19857029,100720.0,100710.0,0.00014599]
[1762280873478,0.56216494,100740.0,100710.0,0.04507599]
[1762280873728,0.19855117,100730.0,100720.0,0.09776605]
[1762280874347,0.19857029,100720.0,100710.0,0.00514599]
[1762280874925,0.19855065,100730.0,100710.0,0.29358918]
[1762280875123,0.19855058,100730.0,100720.0,0.14269605]
[1762280875546,0.56216494,100740.0,100720.0,0.14269605]
[1762280875747,0.19855058,100730.0,100720.0,0.14269605]
[1762280875947,0.56216494,100740.0,100720.0,0.14269605]
[1762280876110,0.56216494,100740.0,100720.0,0.38619609]
[1762280876321,0.19855058,100730.0,100720.0,0.14269605]
[1762280876516,0.19857029,100720.0,100710.0,0.04507599]
[1762280876789,0.19857029,100720.0,100710.0,0.00014599]
[1762280877210,0.19859001,100710.0,100700.0,0.0001]
[1762280877411,3.71936229,100710.0,100700.0,0.0001]
[1762280877535,0.8005538,100710.0,100700.0,0.00304338]
[1762280877943,0.71936229,100710.0,100700.0,0.00304338]
[1762280879199,0.72036229,100710.0,100700.0,0.00304338]
[1762280879409,0.72036229,100710.0,100700.0,0.00229338]
[1762280881352,0.57577229,100710.0,100700.0,0.00229338]
[1762280881521,0.72036229,100710.0,100700.0,0.00229338]
[1762280881719,3.81225555,100710.0,100700.0,0.00229338]
[1762280882131,3.81225555,100710.0,100690.0,0.0001]
[1762280882132,3.57479201,100700.0,100690.0,0.0001]
[1762280882500,3.57479201,100700.0,100670.0,0.0001]
[1762280882501,0.57483146,100680.0,100670.0,0.0001]
[1762280882732,0.63235713,100680.0,100670.0,0.0001]
[1762280882933,0.57487093,100660.0,100650.0,0.00713777]
[1762280883134,0.74977668,100660.0,100650.0,0.00713777]
[1762280883342,0.83698668,100660.0,100650.0,0.00713777]
[1762280885319,0.83798668,100660.0,100650.0,0.00713777]
[1762280886074,3.19870839,100650.0,100640.0,0.00015]
[1762280886268,3.71948067,100650.0,100640.0,0.00015]
[1762280886450,3.82069466,100650.0,100640.0,0.00015]
[1762280887067,3.82069466,100650.0,100640.0,1e-08]
[1762280887675,3.82069466,100650.0,100640.0,0.00200001]
[1762280887928,3.85053488,100650.0,100640.0,0.00200001]
[1762280888190,3.85053488,100650.0,100640.0,1e-08]
[1762280888479,3.85053488,100650.0,100640.0,0.00151754]
[1762280888690,3.38348813,100640.0,100630.0,1e-08]
[1762280888893,3.85156367,100640.0,100630.0,1e-08]
[1762280889440,3.88556366,100640.0,100630.0,1e-08]
[1762280889655,3.86156366,100640.0,100630.0,1e-08]
[1762280889859,3.87670925,100640.0,100630.0,1e-08]
[1762280890059,0.85170926,100640.0,100630.0,1e-08]
[1762280890462,3.86170925,100640.0,100630.0,1e-08]
[1762280890757,3.86370925,100640.0,100630.0,1e-08]
[1762280890969,3.87370924,100640.0,100630.0,1e-08]
[1762280891146,3.92370924,100640.0,100630.0,1e-08]
[1762280891351,3.87641538,100640.0,100630.0,1e-08]
[1762280891559,3.90041538,100640.0,100630.0,1e-08]
[1762280891763,3.94748496,100640.0,100630.0,1e-08]
[1762280891961,3.90041538,100640.0,100630.0,1e-08]
[1762280892166,3.89770924,100640.0,100630.0,1e-08]
[1762280892597,3.90086835,100640.0,100630.0,1e-08]
[1762280892828,3.9703843,100640.0,100630.0,1e-08]
[1762280893037,4.02016002,100640.0,100630.0,1e-08]
[1762280893243,3.97354341,100640.0,100630.0,1e-08]
[1762280893454,4.02131913,100640.0,100630.0,1e-08]
[1762280893701,3.97154341,100640.0,100630.0,1e-08]
[1762280893939,3.97754341,100640.0,100630.0,1e-08]
[1762280894155,3.9743843,100640.0,100630.0,1e-08]
[1762280894357,3.9743843,100640.0,100600.0,1e-08]
[1762280894358,3.67251967,100610.0,100600.0,1e-08]
[1762280894573,3.5750092,100590.0,100580.0,0.0004]
[1762280894792,3.6323892,100590.0,100580.0,0.0004]
[1762280894994,3.7195992,100590.0,100580.0,0.0004]
[1762280895251,0.5750092,100590.0,100580.0,0.00191889]
[1762280895404,0.58897757,100590.0,100580.0,0.00191889]
[1762280895628,0.63527368,100590.0,100580.0,0.00191889]
[1762280895834,0.3902961,100590.0,100580.0,0.00191889]
[1762280896030,0.01411382,100590.0,100580.0,0.29062557]
[1762280896401,0.00014545,100590.0,100580.0,0.29062557]
[1762280897371,0.00114545,100590.0,100580.0,0.29562557]
[1762280897574,0.00114545,100590.0,100580.0,1.07648142]
[1762280897717,0.00114545,100590.0,100580.0,1.17105748]
[1762280897952,0.00014545,100590.0,100580.0,1.50610748]
[1762280898152,0.19872813,100640.0,100610.0,0.19877226]
[1762280898353,0.21286898,100640.0,100630.0,0.02195]
[1762280898556,0.21286898,100640.0,100620.0,0.09776605]
[1762280898557,0.19876764,100620.0,100610.0,0.02195]
[1762280898761,0.34,100620.0,100610.0,0.06674]
[1762280898941,0.34,100620.0,100610.0,0.05973]
[1762280899152,0.19874817,100630.0,100610.0,0.29629739]
[1762280899383,0.26297538,100640.0,100620.0,0.13554605]
[1762280899606,0.22280538,100640.0,100620.0,0.37209369]
[1762280899805,0.01414085,100640.0,100630.0,0.27430788]
[1762280900139,0.00114597,100640.0,100630.0,0.27430788]
[1762280900361,0.00014597,100640.0,100630.0,0.27430788]
[1762280900804,0.01543374,100640.0,100630.0,0.07556]
[1762280901005,0.21316187,100640.0,100630.0,0.1239839]
[1762280901179,0.01443374,100640.0,100630.0,0.27430788]
[1762280901393,0.001,100640.0,100630.0,0.28196732]
[1762280901711,0.001,100640.0,100630.0,0.28201732]
[1762280901884,0.19972813,100640.0,100630.0,0.04548944]
[1762280902114,0.29357966,100640.0,100630.0,0.0081]
[1762280902321,0.79872194,100640.0,100630.0,0.0081]
[1762280902525,0.8195708,100640.0,100630.0,0.00815]
[1762280902993,0.77972703,100640.0,100630.0,0.00815]
[1762280903172,0.77872703,100640.0,100630.0,0.00015]
[1762280903591,0.77972703,100640.0,100630.0,0.00415]
[1762280903791,0.77972703,100640.0,100630.0,0.00440302]
[1762280903792,0.70366703,100640.0,100630.0,0.00440302]
[1762280903999,0.77972703,100640.0,100630.0,0.00440302]
[1762280904214,0.87430309,100640.0,100630.0,0.00440302]
[1762280905172,3.87430309,100640.0,100630.0,0.00440302]
[1762280905371,3.88430308,100640.0,100630.0,0.00440302]
[1762280905598,0.87430309,100640.0,100630.0,0.00440302]
[1762280905806,0.77972703,100640.0,100630.0,0.00440302]
[1762280906432,0.64976703,100640.0,100630.0,0.00040302]
[1762280906630,0.27044703,100640.0,100630.0,0.10216907]
[1762280906898,0.24959817,100640.0,100630.0,0.10216907]
[1762280907284,0.03565473,100640.0,100630.0,0.37579695]
[1762280907416,0.01468776,100640.0,100630.0,0.37579695]
[1762280907622,0.01468776,100640.0,100630.0,0.23450534]
[1762280907912,0.21341589,100640.0,100630.0,0.00440302]
[1762280908133,0.36378525,100640.0,100630.0,0.00440302]
[1762280908351,0.27056525,100640.0,100630.0,0.04184302]
[1762280908556,0.27056525,100640.0,100630.0,0.00440302]
[1762280908755,0.27056525,100640.0,100630.0,0.07928302]
[1762280908887,0.26956525,100640.0,100630.0,0.13560907]
[1762280909290,0.27056525,100640.0,100630.0,0.10516907]
[1762280909796,0.36378525,100640.0,100630.0,0.00740302]
[1762280909982,0.43984525,100640.0,100630.0,0.00740302]
[1762280911590,0.77984525,100640.0,100630.0,0.00740302]
[1762280911968,3.77984525,100640.0,100630.0,0.00740302]
[1762280912387,3.87984434,100640.0,100630.0,0.00740302]
[1762280912598,3.9734204,100640.0,100630.0,0.00040302]
[1762280912924,3.9744204,100640.0,100630.0,0.00240302]
[1762280913156,3.98230881,100640.0,100630.0,0.00240302]
[1762280913360,3.9744204,100640.0,100630.0,0.00240302]
[1762280913563,3.91215356,100640.0,100630.0,0.00240302]
[1762280913798,3.9823092,100640.0,100630.0,0.00240302]
[1762280914759,0.53878739,100610.0,100600.0,0.01461]
[1762280914963,0.36096708,100610.0,100600.0,0.28219141]
[1762280915186,0.36096708,100610.0,100600.0,0.31885141]
[1762280915562,0.02096708,100610.0,100600.0,0.31961074]
[1762280916008,0.02196708,100610.0,100600.0,0.32761074]
[1762280916216,0.02196708,100610.0,100600.0,0.29549648]
[1762280917826,0.001,100610.0,100600.0,0.29549648]
[1762280918898,0.02208455,100610.0,100600.0,0.29549648]
[1762280919345,0.02207549,100610.0,100600.0,0.09668933]
[1762280919508,0.02207549,100610.0,100600.0,0.29549648]
[1762280919739,0.28405726,100610.0,100600.0,0.02336933]
[1762280919894,0.79437954,100610.0,100600.0,0.00875933]
[1762280920780,0.79337954,100610.0,100600.0,0.00075933]
[1762280921007,0.63715516,100610.0,100600.0,0.01457933]
[1762280921208,0.77129516,100610.0,100600.0,0.00075933]
[1762280921991,0.77129516,100610.0,100600.0,0.00080933]
[1762280922284,0.77229516,100610.0,100600.0,0.00580933]
[1762280922502,0.86587122,100610.0,100600.0,0.00085933]
[1762280922924,0.86687122,100610.0,100600.0,0.00390933]
[1762280923337,0.63815516,100610.0,100600.0,0.01772933]
[1762280923717,0.59704516,100610.0,100600.0,0.01772933]
[1762280924383,0.02207549,100610.0,100600.0,0.29035011]
[1762280924630,0.001,100610.0,100600.0,0.09104933]
[1762280924834,0.001,100610.0,100600.0,0.28985648]
[1762280925034,0.001,100610.0,100600.0,0.3553913]
[1762280925238,0.34,100630.0,100620.0,0.19876764]
[1762280925373,0.36107448,100630.0,100620.0,0.23542764]
[1762280925558,0.05725676,100630.0,100620.0,0.2356807]
[1762280926008,0.25600464,100630.0,100620.0,0.2356807]
[1762280926209,0.25600464,100630.0,100620.0,0.00025306]
[1762280926210,0.59600464,100630.0,100620.0,0.00025306]
[1762280926414,0.39725676,100630.0,100620.0,0.2356807]
[1762280926633,0.59600464,100630.0,100620.0,0.03691306]
[1762280926973,0.59700464,100630.0,100620.0,0.2386807]
[1762280927191,0.59700464,100630.0,100620.0,0.03991306]
[1762280927718,0.73114464,100630.0,100620.0,0.00325306]
[1762280927922,0.6915807,100630.0,100620.0,0.00325306]
[1762280928120,0.49283282,100630.0,100620.0,0.00325306]
[1762280928379,0.39825676,100630.0,100620.0,0.2386807]
[1762280928912,0.36207448,100630.0,100620.0,0.2753407]
[1762280929197,0.02207448,100630.0,100620.0,0.2753407]
[1762280929679,0.02207448,100630.0,100620.0,0.85395766]
[1762280929889,0.02207448,100630.0,100620.0,0.36991676]
[1762280930097,0.001,100630.0,100620.0,0.2753407]
[1762280930748,0.001,100630.0,100620.0,0.2713007]
[1762280931874,0.19870839,100650.0,100630.0,0.20865813]
[1762280932087,0.21979694,100650.0,100640.0,0.09776605]
[1762280932294,0.21979694,100650.0,100640.0,0.13038605]
[1762280932472,0.02108855,100650.0,100640.0,0.39894943]
[1762280932685,0.21979694,100650.0,100640.0,0.1676013]
[1762280932892,0.21979694,100650.0,100640.0,0.36632943]
[1762280933099,0.02108855,100650.0,100640.0,0.39894943]
[1762280933316,0.001,100650.0,100640.0,0.36632943]
[1762280933517,0.01492594,100650.0,100640.0,0.39894943]
[1762280933788,0.19870839,100650.0,100640.0,0.13038605]
[1762280934016,0.21979694,100650.0,100640.0,0.32911418]
[1762280934221,0.02108855,100650.0,100640.0,0.36173418]
[1762280934580,0.19870839,100650.0,100640.0,0.13038605]
[1762280934788,0.22079694,100650.0,100640.0,0.36473418]
[1762280935320,0.19970839,100650.0,100640.0,0.003]
[1762280935522,0.29673086,100650.0,100640.0,0.003]
[1762280935938,0.22078225,100650.0,100640.0,0.003]
[1762280936148,0.27155741,100650.0,100640.0,0.003]
[1762280936353,0.25048355,100650.0,100640.0,0.003]
[1762280936758,0.25048355,100650.0,100640.0,0.23434813]
[1762280936907,0.21430127,100650.0,100640.0,0.23434813]
[1762280937110,0.01559288,100650.0,100640.0,0.32336497]
[1762280937514,0.21430127,100650.0,100640.0,0.32336497]
[1762280937716,0.01559288,100650.0,100640.0,0.32336497]
[1762280938434,0.21430127,100650.0,100640.0,0.32336497]
[1762280938776,0.21430127,100650.0,100640.0,0.12463684]
[1762280939185,0.01559288,100650.0,100640.0,0.32336497]
[1762280939392,0.21430127,100650.0,100640.0,0.32336497]
[1762280940134,0.01559288,100650.0,100640.0,0.32336497]
[1762280940335,0.21430127,100650.0,100640.0,0.12463684]
[1762280940592,0.21430127,100650.0,100640.0,0.06824]
[1762280940817,0.01559288,100650.0,100640.0,0.26696813]
[1762280940988,0.01559288,100650.0,100640.0,0.26396813]
[1762280940989,0.01459288,100650.0,100640.0,0.26396813]
[1762280941217,0.249779,100680.0,100660.0,0.19867061]
[1762280941218,0.19865478,100680.0,100660.0,0.19867061]
[1762280941402,0.21971492,100680.0,100670.0,0.14917605]
[1762280941798,0.0361171,100680.0,100670.0,0.38046496]
[1762280942053,0.55370614,100680.0,100670.0,0.18179605]
[1762280942289,0.01505696,100680.0,100670.0,0.38046496]
[1762280942495,0.21058615,100690.0,100670.0,0.38046496]
[1762280942496,0.00193449,100690.0,100680.0,0.19864918]
[1762280942700,0.00208043,100690.0,100680.0,0.32180059]
[1762280943396,0.22665577,100710.0,100700.0,0.23122973]
[1762280943589,0.22665577,100710.0,100700.0,0.13038605]
[1762280944020,0.19860973,100700.0,100690.0,0.13038605]
[1762280944261,0.19862945,100690.0,100680.0,0.25656016]
[1762280944458,0.19864918,100680.0,100670.0,0.14917605]
[1762280944671,0.53864918,100680.0,100670.0,0.01927833]
[1762280945100,0.53864918,100680.0,100670.0,0.00048833]
[1762280945101,0.70474146,100680.0,100670.0,0.00048833]
[1762280945302,0.72577473,100680.0,100670.0,0.00048833]
[1762280945420,0.62940572,100680.0,100670.0,0.00048833]
[1762280945620,0.59586473,100680.0,100670.0,0.00048833]
[1762280945835,0.57483146,100680.0,100670.0,0.00048833]
[1762280946259,0.72576978,100680.0,100670.0,0.00048833]
[1762280946491,0.64770978,100680.0,100670.0,0.00048833]
[1762280946693,0.59585978,100680.0,100670.0,0.00048833]
[1762280947314,0.78419038,100680.0,100670.0,0.00048833]
[1762280947510,0.80822078,100680.0,100670.0,0.00048833]
[1762280947708,0.59886186,100680.0,100670.0,0.00048833]
[1762280947926,0.343,100680.0,100670.0,0.23177724]
[1762280948082,0.003,100680.0,100670.0,0.36216329]
[1762280948397,0.02982627,100690.0,100680.0,0.19864918]
[1762280948614,0.19860999,100700.0,100680.0,0.26388918]
[1762280948842,0.02103337,100700.0,100690.0,0.3290155]
[1762280949045,0.24202166,100710.0,100690.0,0.3616355]
[1762280949248,0.53860973,100700.0,100690.0,0.13038605]
[1762280949449,0.19886249,100700.0,100690.0,0.13038605]
[1762280949651,0.02128322,100700.0,100690.0,0.3616355]
[1762280949854,0.00025276,100700.0,100690.0,0.42426534]
[1762280951553,0.19986249,100700.0,100690.0,0.22563589]
[1762280951756,0.19986249,100700.0,100690.0,0.13038605]
[1762280951958,0.00125276,100700.0,100690.0,0.16300605]
[1762280952182,0.19986249,100700.0,100690.0,0.13038605]
[1762280952531,0.19986249,100700.0,100690.0,0.3616355]
[1762280952532,0.00125276,100700.0,100690.0,0.3616355]
[1762280953899,0.19986249,100700.0,100690.0,0.13038605]
[1762280954111,0.19862945,100690.0,100680.0,0.07822]
[1762280954297,0.19864918,100680.0,100670.0,0.13087438]
[1762280954978,0.19864918,100680.0,100670.0,0.00048833]
[1762280954979,0.53864918,100680.0,100670.0,0.00048833]
[1762280955427,0.57483146,100680.0,100670.0,0.00048833]
[1762280955643,0.53864918,100680.0,100670.0,0.06572833]
[1762280955878,0.57483146,100680.0,100670.0,0.06572833]
[1762280956066,0.65217755,100680.0,100670.0,0.03410833]
[1762280956333,0.65217755,100680.0,100670.0,0.00148833]
[1762280956533,0.70402755,100680.0,100670.0,0.00148833]